[Event "-chT Youth Countries 2019"]
[Site "Wuerzburg"]
[Date "2019.10.02"]
[Round "2.5"]
[White "Stockmann, Till"]
[Black "Haack, Kevin"]
[Result "1/2-1/2"]
[ECO "B90"]
[WhiteElo "1884"]
[BlackElo "2044"]
[Annotator "NA"]
[PlyCount "171"]
[EventDate "2019.10.02"]
[EventType "team-tourn"]
[EventRounds "7"]
[EventCountry "GER"]
[SourceTitle "playchess.com"]
[Source "ChessBase"]
[SourceQuality "1"]
[WhiteTeam "Sachsen-Anhalt"]
[BlackTeam "Hessen"]
[TimeControl "40/5400+30:1800+30"]

1. e4 {[%emt 0:00:00]} c5 {[%emt 0:00:00]} 2. Nf3 {[%emt 0:00:00]} d6 {[%emt 0:00:00]} 3. d4 {[%emt 0:00:00]} cxd4 {[%emt 0:00:00]} 4. Nxd4 {[%emt 0:00:00]} Nf6 {[%emt 0:00:00]} 5. Nc3 {[%emt 0:00:12]} a6 {[%emt 0:00:00]} 6. Be3 {[%emt 0:05:05]} e6 {[%emt 0:00:18]} 7. Bd3 {[%emt 0:03:49]} b5 {[%emt 0:01:02]} 8. a3 {[%emt 0:04:38]} Bb7 {[%emt 0:00:53]} 9. f4 {[%emt 0:00:59]} Qc7 {[%emt 0:01:45]} 10. Qf3 {[%emt 0:02:04]} Nbd7 {[%emt 0:02:14]} 11. g4 {[%emt 0:09:21]} Nb6 {[%emt 0:01:55]} 12. g5 {[%emt 0:01:30]} Nfd7 {[%emt 0:00:08]} 13. Qh3 {[%emt 0:03:20]} g6 {[%emt 0:03:42]} 14. Rf1 {[%emt 0:02:25]} e5 {[%emt 0:04:23]} 15. Nde2 {[%emt 0:04:15]} exf4 {[%emt 0:13:09]} 16. Bd4 {[%emt 0:07:48]} Ne5 {[%emt 0:00:57]} 17. Nxf4 {[%emt 0:00:51]} Bg7 {[%emt 0:10:40]} 18. O-O-O {[%emt 0:06:03]} Rc8 {[%emt 0:04:19]} 19. Kb1 {[%emt 0:10:24]} h6 {[%emt 0:04:15]} 20. Bxe5 {[%emt 0:09:47]} Bxe5 {[%emt 0:04:00]} 21. Nxg6 {[%emt 0:02:09]} fxg6 {[%emt 0:02:35]} 22. Bxb5+ {[%emt 0:04:49]} axb5 {[%emt 0:03:54]} 23. Qe6+ {[%emt 0:00:15]} Qe7 {[%emt 0:01:06]} 24. Qxg6+ {[%emt 0:00:17]} Kd8 {[%emt 0:00:45]} 25. Rf7 {[%emt 0:01:05]} Qe8 {[%emt 0:01:06]} 26. gxh6 {[%emt 0:07:24]} Rc7 {[%emt 0:01:58]} 27. Rxd6+ {[%emt 0:02:45]} Bxd6 {[%emt 0:06:32]} 28. Qxd6+ {[%emt 0:00:10]} Nd7 {[%emt 0:00:44]} 29. Nxb5 {[%emt 0:00:42]} Rc6 {[%emt 0:00:22]} 30. Qf4 {[%emt 0:02:01]} Rhxh6 {[%emt 0:05:50]} 31. e5 {[%emt 0:00:37]} Rh5 {[%emt 0:14:56]} 32. Nd6 {[%emt 0:04:21]} Rxd6 {[%emt 0:02:41]} 33. exd6 {[%emt 0:00:12]} Qe1+ {[%emt 0:00:43]} 34. Qc1 {[%emt 0:00:32]} Qxc1+ {[%emt 0:02:57]} 35. Kxc1 {[%emt 0:00:25]} Rxh2 {[%emt 0:00:15]} 36. b4 {[%emt 0:01:18]} Be4 {[%emt 0:01:30]} 37. Rf4 {[%emt 0:02:05]} Rxc2+ {[%emt 0:03:16]} 38. Kd1 {[%emt 0:00:21]} Bg6 {[%emt 0:00:21]} 39. Rg4 {[%emt 0:00:25]} Bh5 {[%emt 0:01:03]} 40. Kxc2 {[%emt 0:00:08]} Bxg4 {[%emt 0:00:03]} 41. Kc3 {[%emt 0:31:35]} Nb6 {[%emt 0:31:15]} 42. Kd4 {[%emt 0:00:41]} Kd7 {[%emt 0:00:07]} 43. Kc5 {[%emt 0:01:10]} Na4+ {[%emt 0:00:07]} 44. Kd5 {[%emt 0:00:35]} Be6+ {[%emt 0:00:03]} 45. Ke5 {[%emt 0:00:13]} Nb6 {[%emt 0:00:03]} 46. Kd4 {[%emt 0:00:48]} Kxd6 {[%emt 0:00:05]} 47. Ke4 {[%emt 0:00:26]} Kc6 {[%emt 0:00:58]} 48. Ke5 {[%emt 0:00:21]} Bg8 {[%emt 0:00:07]} 49. Kd4 {[%emt 0:00:20]} Kb5 {[%emt 0:00:03]} 50. Ke4 {[%emt 0:00:28]} Nc4 {[%emt 0:00:10]} 51. Kd4 {[%emt 0:00:30]} Nxa3 {[%emt 0:00:05]} 52. Ke5 {[%emt 0:00:17]} Kxb4 {[%emt 0:00:05]} 53. Kd4 {[%emt 0:00:17]} Nc4 {[%emt 0:00:14]} 54. Ke4 {[%emt 0:00:27]} Be6 {[%emt 0:03:18]} 55. Kd4 {[%emt 0:00:35]} Bd7 {[%emt 0:03:20]} 56. Kd5 {[%emt 0:00:30]} Kb5 {[%emt 0:00:06]} 57. Ke4 {[%emt 0:00:56]} Kc5 {[%emt 0:00:10]} 58. Kf4 {[%emt 0:00:28]} Kd4 {[%emt 0:00:22]} 59. Kg5 {[%emt 0:01:01]} Ke5 {[%emt 0:00:14]} 60. Kg6 {[%emt 0:00:12]} Nd6 {[%emt 0:01:41]} 61. Kg5 {[%emt 0:00:26]} Bf5 {[%emt 0:00:29]} 62. Kh6 {[%emt 0:00:30]} Kf6 {[%emt 0:00:34]} 63. Kh5 {[%emt 0:00:10]} Be6 {[%emt 0:00:00]} 64. Kh4 {[%emt 0:00:00]} Ne4 {[%emt 0:00:00]} 65. Kh5 {[%emt 0:00:00]} Kf5 {[%emt 0:00:00]} 66. Kh6 {[%emt 0:00:00]} Nf6 {[%emt 0:00:00]} 67. Kg7 {[%emt 0:00:00]} Nd7 {[%emt 0:00:00]} 68. Kh8 {[%emt 0:00:00]} Kf6 {[%emt 0:00:00]} 69. Kh7 {[%emt 0:00:00]} Nf8+ {[%emt 0:00:00]} 70. Kh8 {[%emt 0:00:00]} Ng6+ {[%emt 0:00:00]} 71. Kh7 {[%emt 0:00:00]} Bc4 {[%emt 0:00:00]} 72. Kh6 {[%emt 0:00:00]} Bg8 {[%emt 0:00:00]} 73. Kh5 {[%emt 0:00:00]} Ne5 {[%emt 0:00:00]} 74. Kh4 {[%emt 0:00:00]} Bf7 {[%emt 0:00:00]} 75. Kg3 {[%emt 0:00:00]} Ng6 {[%emt 0:00:00]} 76. Kf3 {[%emt 0:00:00]} Be6 {[%emt 0:00:00]} 77. Ke4 {[%emt 0:00:00]} Ke7 {[%emt 0:00:00]} 78. Kd4 {[%emt 0:00:00]} Kd6 {[%emt 0:00:00]} 79. Ke4 {[%emt 0:00:00]} Kc5 {[%emt 0:00:00]} 80. Kd3 {[%emt 0:00:00]} Kb4 {[%emt 0:00:00]} 81. Kd4 {[%emt 0:00:00]} Kb5 {[%emt 0:00:00]} 82. Kd3 {[%emt 0:00:00]} Ka4 {[%emt 0:00:00]} 83. Ke4 {[%emt 0:00:00]} Kb3 {[%emt 0:00:00]} 84. Kd4 {[%emt 0:00:00]} Kb4 {[%emt 0:00:00]} 85. Kd3 {[%emt 0:00:00]} Kc5 {[%emt 0:00:20]} 86. Ke4 {normal} 1/2-1/2

[Event "-chT Youth Countries 2019"]
[Site "Wuerzburg"]
[Date "2019.10.02"]
[Round "2.5"]
[White "Schiewe, Nadin"]
[Black "Grining, Maria"]
[Result "1/2-1/2"]
[ECO "D05"]
[WhiteElo "1593"]
[BlackElo "1801"]
[Annotator "NA"]
[PlyCount "123"]
[EventDate "2019.10.02"]
[EventType "team-tourn"]
[EventRounds "7"]
[EventCountry "GER"]
[SourceTitle "playchess.com"]
[Source "ChessBase"]
[SourceQuality "1"]
[WhiteTeam "SG Brandenburg / Berlin"]
[BlackTeam "Baden 2"]
[TimeControl "40/5400+30:1800+30"]

1. d4 {[%emt 0:00:00]} d5 {[%emt 0:00:00]} 2. Nf3 {[%emt 0:00:00]} Nf6 {[%emt 0:00:00]} 3. e3 {[%emt 0:00:00]} e6 {[%emt 0:00:17]} 4. Bd3 {[%emt 0:00:13]} c5 {[%emt 0:00:11]} 5. c3 {[%emt 0:00:10]} Nc6 {[%emt 0:00:11]} 6. Nbd2 {[%emt 0:00:21]} Bd6 {[%emt 0:00:50]} 7. O-O {[%emt 0:00:22]} Qc7 {[%emt 0:00:31]} 8. Qe2 {[%emt 0:01:35]} O-O {[%emt 0:01:06]} 9. dxc5 {[%emt 0:02:02]} Bxc5 {[%emt 0:00:58]} 10. e4 {[%emt 0:00:58]} e5 {[%emt 0:10:24]} 11. exd5 {[%emt 0:05:22]} Nxd5 {[%emt 0:00:15]} 12. Bxh7+ {[%emt 0:00:42]} Kxh7 {[%emt 0:03:59]} 13. Qe4+ {[%emt 0:00:57]} Kg8 {[%emt 0:00:42]} 14. Qxd5 {[%emt 0:00:25]} Be7 {[%emt 0:02:30]} 15. Re1 {[%emt 0:01:27]} Be6 {[%emt 0:04:07]} 16. Qb5 {[%emt 0:05:18]} Rad8 {[%emt 0:04:17]} 17. Nxe5 {[%emt 0:03:38]} Rd5 {[%emt 0:01:58]} 18. Qa4 {[%emt 0:06:02]} Rxe5 {[%emt 0:01:42]} 19. Rxe5 {[%emt 0:03:15]} Qxe5 {[%emt 0:00:12]} 20. Nf3 {[%emt 0:00:12]} Qh5 {[%emt 0:03:52]} 21. Be3 {[%emt 0:04:58]} Bd5 {[%emt 0:04:46]} 22. Qf4 {[%emt 0:06:20]} Rd8 {[%emt 0:09:29]} 23. h3 {[%emt 0:15:18]} Bd6 {[%emt 0:13:18]} 24. Qg4 {[%emt 0:00:48]} Bxf3 {[%emt 0:00:48]} 25. gxf3 {[%emt 0:04:55]} Qe5 {[%emt 0:04:52]} 26. f4 {[%emt 0:01:04]} Qb5 {[%emt 0:01:46]} 27. b3 {[%emt 0:01:57]} Bc5 {[%emt 0:05:11]} 28. Qg5 {[%emt 0:04:01]} b6 {[%emt 0:05:43]} 29. b4 {[%emt 0:01:19]} Rd6 {[%emt 0:00:51]} 30. Kh2 {[%emt 0:02:24]} Rg6 {[%emt 0:05:32]} 31. Qh5 {[%emt 0:01:07]} Nxb4 {[%emt 0:07:31]} 32. cxb4 {[%emt 0:03:34]} Qc6 {[%emt 0:00:09]} 33. Rg1 {[%emt 0:01:02]} Rxg1 {[%emt 0:01:32]} 34. Kxg1 {[%emt 0:00:15]} Bxb4 {[%emt 0:00:30]} 35. Qe5 {[%emt 0:02:30]} Bd6 {[%emt 0:01:49]} 36. Qg5 {[%emt 0:03:49]} Bc5 {[%emt 0:03:32]} 37. Qd8+ {[%emt 0:05:23]} Kh7 {[%emt 0:00:21]} 38. Bxc5 {[%emt 0:00:34]} bxc5 {[%emt 0:00:21]} 39. Qe7 {[%emt 0:00:42]} c4 {[%emt 0:01:37]} 40. Qxf7 {[%emt 0:01:27]} Qg6+ {[%emt 0:01:05]} 41. Qxg6+ {[%emt 0:30:09]} Kxg6 {[%emt 0:30:03]} 42. Kf1 {[%emt 0:00:17]} Kf5 {[%emt 0:01:27]} 43. Ke2 {[%emt 0:00:38]} Kxf4 {[%emt 0:00:00]} 44. a4 {[%emt 0:00:00]} Ke4 {[%emt 0:00:00]} 45. a5 {[%emt 0:00:00]} c3 {[%emt 0:00:00]} 46. h4 {[%emt 0:00:00]} c2 {[%emt 0:00:00]} 47. Kd2 {[%emt 0:00:00]} Kf3 {[%emt 0:00:00]} 48. Kxc2 {[%emt 0:00:00]} Kxf2 {[%emt 0:00:00]} 49. Kb3 {[%emt 0:00:00]} Kg3 {[%emt 0:00:00]} 50. h5 {[%emt 0:00:00]} Kg4 51. Kb4 {[%emt 0:00:00]} Kxh5 {[%emt 0:00:00]} 52. Kb5 {[%emt 0:00:00]} g5 {[%emt 0:00:00]} 53. Ka6 {[%emt 0:00:00]} g4 {[%emt 0:00:00]} 54. Kxa7 {[%emt 0:00:00]} g3 {[%emt 0:00:00]} 55. Kb7 g2 {[%emt 0:00:00]} 56. a6 {[%emt 0:00:00]} g1=Q {[%emt 0:00:00]} 57. a7 {[%emt 0:00:00]} Qb1+ {[%emt 0:00:00]} 58. Ka8 {[%emt 0:00:00]} Qa2 {[%emt 0:00:00]} 59. Kb7 Qb3+ {[%emt 0:00:00]} 60. Ka8 {[%emt 0:00:00]} Qa3 {[%emt 0:00:00]} 61. Kb7 {[%emt 0:00:00]} Qb4+ {[%emt 0:00:00]} 62. Ka8 {[%emt 0:00:00] normal} 1/2-1/2

[Event "-chT Youth Countries 2019"]
[Site "Wuerzburg"]
[Date "2019.10.02"]
[Round "2.5"]
[White "Unbehend, Marius"]
[Black "Khamenya, Vitalia"]
[Result "0-1"]
[ECO "C54"]
[WhiteElo "1461"]
[BlackElo "1908"]
[Annotator "NA"]
[PlyCount "83"]
[EventDate "2019.10.02"]
[EventType "team-tourn"]
[EventRounds "7"]
[EventCountry "GER"]
[SourceTitle "playchess.com"]
[Source "ChessBase"]
[SourceQuality "1"]
[WhiteTeam "Saarland"]
[BlackTeam "Bayern 2"]
[TimeControl "40/5400+30:1800+30"]

1. e4 {[%emt 0:00:00]} e5 {[%emt 0:00:00]} 2. Nf3 {[%emt 0:00:00]} Nc6 {[%emt 0:00:00]} 3. Bc4 {[%emt 0:00:12]} Bc5 {[%emt 0:00:26]} 4. c3 {[%emt 0:00:28]} Nf6 {[%emt 0:00:21]} 5. d3 {[%emt 0:00:09]} d6 {[%emt 0:00:32]} 6. O-O {[%emt 0:00:29]} a6 {[%emt 0:00:12]} 7. b4 {[%emt 0:00:39]} Ba7 {[%emt 0:04:50]} 8. a4 {[%emt 0:00:58]} O-O {[%emt 0:02:49]} 9. Na3 {[%emt 0:01:26]} Ne7 {[%emt 0:11:21]} 10. Bg5 {[%emt 0:01:48]} Ng6 {[%emt 0:00:46]} 11. Nc2 {[%emt 0:03:47]} h6 {[%emt 0:04:50]} 12. Be3 {[%emt 0:03:01]} d5 {[%emt 0:11:07]} 13. exd5 {[%emt 0:02:38]} Nxd5 {[%emt 0:02:51]} 14. Bxd5 {[%emt 0:04:34]} Qxd5 {[%emt 0:00:15]} 15. Bxa7 {[%emt 0:01:38]} Rxa7 {[%emt 0:00:14]} 16. Ne3 {[%emt 0:02:01]} Qc6 {[%emt 0:02:14]} 17. Qc2 {[%emt 0:01:37]} Re8 {[%emt 0:07:41]} 18. Rfe1 {[%emt 0:06:59]} Nf4 {[%emt 0:14:20]} 19. Rad1 {[%emt 0:09:05]} Bh3 {[%emt 0:05:24]} 20. d4 {[%emt 0:05:12]} Nxg2 {[%emt 0:09:07]} 21. Nxe5 {[%emt 0:05:48]} Nxe1 {[%emt 0:00:53]} 22. Nxc6 {[%emt 0:04:19]} Nxc2 {[%emt 0:00:06]} 23. Nxa7 {[%emt 0:00:05]} Nxe3 24. Re1 {[%emt 0:01:03]} Ra8 {[%emt 0:00:56]} 25. Rxe3 {[%emt 0:00:07]} Be6 {[%emt 0:00:19]} 26. d5 {[%emt 0:01:40]} Bxd5 {[%emt 0:00:50]} 27. Re7 {[%emt 0:00:21]} Rxa7 {[%emt 0:02:22]} 28. Rxc7 {[%emt 0:00:05]} Ra8 {[%emt 0:01:08]} 29. Kf1 {[%emt 0:00:31]} Bc6 {[%emt 0:00:45]} 30. Ke1 {[%emt 0:00:30]} Bxa4 {[%emt 0:04:29]} 31. Rxb7 {[%emt 0:00:26]} Rc8 {[%emt 0:00:10]} 32. Kd2 {[%emt 0:00:22]} Bb5 {[%emt 0:00:29]} 33. Re7 {[%emt 0:01:10]} Re8 {[%emt 0:01:12]} 34. Rxe8+ {[%emt 0:01:27]} Bxe8 {[%emt 0:00:01]} 35. Kd3 {[%emt 0:00:28]} Kf8 {[%emt 0:01:09]} 36. Kd4 {[%emt 0:00:05]} Ke7 {[%emt 0:00:19]} 37. Kc5 {[%emt 0:00:14]} Kd8 {[%emt 0:00:41]} 38. Kd6 {[%emt 0:00:32]} Bb5 {[%emt 0:00:49]} 39. f3 {[%emt 0:01:19]} g5 {[%emt 0:02:26]} 40. Kd5 {[%emt 0:00:23]} Kd7 {[%emt 0:00:55]} 41. Ke5 {[%emt 0:30:09]} Ke7 {[%emt 0:35:41]} 42. Kd4 {normal} 0-1

[Event "-chT Youth Countries 2019"]
[Site "Wuerzburg"]
[Date "2019.10.02"]
[Round "2.6"]
[White "Yaghi, Rita"]
[Black "Dietz, Kristin"]
[Result "1/2-1/2"]
[ECO "B42"]
[WhiteElo "1973"]
[BlackElo "1948"]
[Annotator "NA"]
[PlyCount "88"]
[EventDate "2019.10.02"]
[EventType "team-tourn"]
[EventRounds "7"]
[EventCountry "GER"]
[SourceTitle "playchess.com"]
[Source "ChessBase"]
[SourceQuality "1"]
[WhiteTeam "Hessen"]
[BlackTeam "Sachsen-Anhalt"]
[TimeControl "40/5400+30:1800+30"]

1. e4 {[%emt 0:00:00]} c5 {[%emt 0:00:00]} 2. Nf3 {[%emt 0:00:00]} e6 {[%emt 0:00:00]} 3. d4 {[%emt 0:00:00]} cxd4 {[%emt 0:00:00]} 4. Nxd4 {[%emt 0:00:01]} a6 {[%emt 0:00:07]} 5. Bd3 {[%emt 0:00:12]} Nf6 {[%emt 0:00:18]} 6. Qe2 {[%emt 0:00:22]} d6 {[%emt 0:00:15]} 7. O-O {[%emt 0:01:45]} Qc7 {[%emt 0:00:23]} 8. c4 {[%emt 0:00:09]} g6 {[%emt 0:00:19]} 9. f4 {[%emt 0:06:37]} Bg7 {[%emt 0:01:49]} 10. Nf3 {[%emt 0:04:05]} Nc6 {[%emt 0:01:41]} 11. Nc3 {[%emt 0:01:13]} O-O {[%emt 0:00:14]} 12. Kh1 {[%emt 0:01:37]} b6 {[%emt 0:01:48]} 13. Bd2 {[%emt 0:03:13]} Bb7 {[%emt 0:01:13]} 14. Rac1 {[%emt 0:00:59]} Rfd8 {[%emt 0:11:50]} 15. Nd5 {[%emt 0:17:10]} exd5 {[%emt 0:04:20]} 16. cxd5 {[%emt 0:02:29]} Qd7 {[%emt 0:00:38]} 17. dxc6 {[%emt 0:01:39]} Bxc6 {[%emt 0:00:51]} 18. e5 {[%emt 0:03:48]} Bxf3 {[%emt 0:07:21]} 19. Rxf3 {[%emt 0:01:06]} dxe5 {[%emt 0:00:44]} 20. fxe5 {[%emt 0:01:28]} Ng4 {[%emt 0:02:26]} 21. Bc3 {[%emt 0:07:07]} Re8 {[%emt 0:06:16]} 22. Be4 {[%emt 0:13:55]} Rad8 {[%emt 0:05:31]} 23. Rcf1 {[%emt 0:08:08]} Nxe5 {[%emt 0:09:00]} 24. Bxe5 {[%emt 0:03:54]} Rxe5 {[%emt 0:00:40]} 25. Rd3 {[%emt 0:03:12]} Qxd3 {[%emt 0:04:56]} 26. Qxd3 {[%emt 0:00:30]} Rxd3 {[%emt 0:00:12]} 27. Bxd3 {[%emt 0:00:02]} b5 {[%emt 0:03:39]} 28. b3 {[%emt 0:00:58]} Kf8 {[%emt 0:01:16]} 29. g3 {[%emt 0:01:04]} Ke7 {[%emt 0:04:09]} 30. Kg2 f5 {[%emt 0:01:15]} 31. Rc1 {[%emt 0:01:15]} Kd7 {[%emt 0:01:21]} 32. Rc2 {[%emt 0:00:19]} a5 {[%emt 0:07:14]} 33. Be2 {[%emt 0:02:30]} b4 {[%emt 0:03:17]} 34. Bf3 {[%emt 0:00:46]} Bh6 {[%emt 0:04:43]} 35. Bc6+ {[%emt 0:03:55]} Kd6 {[%emt 0:01:30]} 36. Bf3 {[%emt 0:00:12]} Kd7 {[%emt 0:02:46]} 37. Bc6+ {[%emt 0:01:06]} Kd6 {[%emt 0:03:51]} 38. Bf3 {[%emt 0:00:16]} Rc5 {[%emt 0:01:50]} 39. Re2 {[%emt 0:00:16]} Bg7 {[%emt 0:02:31]} 40. Bb7 {[%emt 0:03:27]} Bc3 {[%emt 0:03:37]} 41. Kf2 {[%emt 0:33:49]} Rc7 {[%emt 0:31:09]} 42. Ba6 {[%emt 0:01:51]} Kc5 {[%emt 0:02:21]} 43. Bc4 {[%emt 0:01:59]} Kd4 {[%emt 0:01:13]} 44. Re3 {[%emt 0:00:00]} Kc5 {[%emt 0:00:00] normal} 1/2-1/2

[Event "-chT Youth Countries 2019"]
[Site "Wuerzburg"]
[Date "2019.10.02"]
[Round "2.6"]
[White "Muedder, Melanie"]
[Black "Schulz, Hannah"]
[Result "0-1"]
[ECO "B15"]
[WhiteElo "1964"]
[BlackElo "1554"]
[Annotator "NA"]
[PlyCount "118"]
[EventDate "2019.10.02"]
[EventType "team-tourn"]
[EventRounds "7"]
[EventCountry "GER"]
[SourceTitle "playchess.com"]
[Source "ChessBase"]
[SourceQuality "1"]
[WhiteTeam "Nordrhein-Westfalen"]
[BlackTeam "Baden 1"]
[TimeControl "40/5400+30:1800+30"]

1. e4 {[%emt 0:00:00]} c6 {[%emt 0:00:00]} 2. d4 {[%emt 0:00:00]} d5 {[%emt 0:00:00]} 3. Nc3 {[%emt 0:00:00]} dxe4 {[%emt 0:00:00]} 4. Nxe4 {[%emt 0:00:02]} Nf6 {[%emt 0:00:00]} 5. Nxf6+ {[%emt 0:00:23]} exf6 {[%emt 0:00:00]} 6. Bc4 {[%emt 0:00:52]} Bd6 {[%emt 0:00:29]} 7. Ne2 {[%emt 0:01:33]} O-O {[%emt 0:00:25]} 8. O-O {[%emt 0:00:35]} Nd7 {[%emt 0:02:47]} 9. c3 {[%emt 0:06:21]} Nb6 {[%emt 0:00:37]} 10. Bd3 {[%emt 0:00:20]} Be6 {[%emt 0:02:02]} 11. Qc2 {[%emt 0:01:33]} h5 {[%emt 0:01:42]} 12. c4 {[%emt 0:08:52]} Bc7 {[%emt 0:02:22]} 13. b3 {[%emt 0:05:37]} Qb8 {[%emt 0:03:50]} 14. h4 {[%emt 0:04:50]} a5 {[%emt 0:01:24]} 15. Bb2 {[%emt 0:06:10]} Nd7 {[%emt 0:05:40]} 16. Rac1 {[%emt 0:07:56]} Rc8 {[%emt 0:02:16]} 17. Qd2 {[%emt 0:09:54]} Nb6 {[%emt 0:08:45]} 18. Bb1 {[%emt 0:03:15]} a4 {[%emt 0:01:13]} 19. Qd3 {[%emt 0:01:40]} g6 {[%emt 0:01:49]} 20. Qd2 {[%emt 0:08:22]} axb3 {[%emt 0:00:41]} 21. axb3 {[%emt 0:00:35]} Kg7 {[%emt 0:00:33]} 22. Qc3 {[%emt 0:03:47]} Bg4 {[%emt 0:02:11]} 23. f3 {[%emt 0:02:10]} Bd7 {[%emt 0:00:38]} 24. f4 {[%emt 0:04:44]} Re8 {[%emt 0:00:54]} 25. Rce1 {[%emt 0:03:54]} Bg4 {[%emt 0:00:52]} 26. d5 {[%emt 0:09:30]} Qd8 {[%emt 0:02:44]} 27. Nd4 {[%emt 0:02:38]} Rxe1 {[%emt 0:00:57]} 28. Qxe1 {[%emt 0:01:11]} cxd5 {[%emt 0:01:12]} 29. c5 {[%emt 0:01:16]} Nd7 {[%emt 0:00:55]} 30. b4 {[%emt 0:00:39]} Nb8 {[%emt 0:01:57]} 31. Nb5 {[%emt 0:02:33]} Nc6 {[%emt 0:00:59]} 32. Nxc7 {[%emt 0:02:33]} Qxc7 {[%emt 0:00:06]} 33. Qc3 {[%emt 0:00:25]} d4 {[%emt 0:01:36]} 34. Qd2 {[%emt 0:00:38]} Ra4 {[%emt 0:02:56]} 35. b5 {[%emt 0:00:49]} Ne7 {[%emt 0:00:45]} 36. Bxd4 {[%emt 0:00:24]} Qd7 {[%emt 0:01:32]} 37. Bc3 {[%emt 0:01:17]} Qxb5 {[%emt 0:02:09]} 38. Qd6 {[%emt 0:00:46]} Ng8 {[%emt 0:01:45]} 39. f5 {[%emt 0:00:39]} Ra6 {[%emt 0:08:39]} 40. Qd4 {[%emt 0:00:32]} Rc6 {[%emt 0:07:22]} 41. Bb4 {[%emt 0:02:58]} Nh6 {[%emt 0:03:38]} 42. fxg6 {[%emt 0:05:42]} fxg6 {[%emt 0:00:51]} 43. Bd3 {[%emt 0:04:12]} Qa4 {[%emt 0:00:57]} 44. Be4 {[%emt 0:02:26]} Re6 {[%emt 0:02:44]} 45. Bxb7 {[%emt 0:03:23]} Nf5 {[%emt 0:00:58]} 46. Qb2 {[%emt 0:02:25]} Ne3 {[%emt 0:05:24]} 47. Ra1 {[%emt 0:03:32]} Qb5 {[%emt 0:01:26]} 48. Ba3 {[%emt 0:01:37]} Qd3 {[%emt 0:01:50]} 49. Ba8 {[%emt 0:03:05]} Re7 {[%emt 0:09:54]} 50. c6 {[%emt 0:01:37]} Nc4 {[%emt 0:00:29]} 51. Qb4 {[%emt 0:01:10]} Qd4+ {[%emt 0:00:26]} 52. Kh2 {[%emt 0:00:36]} Qe5+ {[%emt 0:04:48]} 53. g3 {[%emt 0:01:27]} Qe2+ {[%emt 0:00:28]} 54. Kg1 {[%emt 0:00:25]} Qe3+ {[%emt 0:01:18]} 55. Kg2 {[%emt 0:00:49]} Bf3+ {[%emt 0:00:35]} 56. Kh3 {[%emt 0:00:23]} Bg4+ {[%emt 0:00:49]} 57. Kg2 {[%emt 0:00:15]} Qf3+ {[%emt 0:00:29]} 58. Kh2 {[%emt 0:02:00]} Qf2+ {[%emt 0:00:13]} 59. Kh1 {[%emt 0:00:04]} Bf3# {normal} 0-1

[Event "-chT Youth Countries 2019"]
[Site "Wuerzburg"]
[Date "2019.10.02"]
[Round "2.6"]
[White "Brunner, Sophia"]
[Black "Costa, Leonardo"]
[Result "1/2-1/2"]
[ECO "D02"]
[WhiteElo "1935"]
[BlackElo "1959"]
[Annotator "NA"]
[PlyCount "95"]
[EventDate "2019.10.02"]
[EventType "team-tourn"]
[EventRounds "7"]
[EventCountry "GER"]
[SourceTitle "playchess.com"]
[Source "ChessBase"]
[SourceQuality "1"]
[WhiteTeam "Niedersachsen"]
[BlackTeam "Bayern 1"]
[TimeControl "40/5400+30:1800+30"]

1. d4 {[%emt 0:00:00]} d5 {[%emt 0:00:00]} 2. Nf3 {[%emt 0:00:00]} e6 {[%emt 0:01:03]} 3. g3 {[%emt 0:00:00]} Nf6 {[%emt 0:01:11]} 4. Bg2 {[%emt 0:00:06]} Be7 {[%emt 0:01:34]} 5. O-O {[%emt 0:00:17]} O-O {[%emt 0:01:35]} 6. c4 {[%emt 0:00:41]} dxc4 {[%emt 0:05:45]} 7. Ne5 {[%emt 0:00:23]} Nc6 {[%emt 0:01:31]} 8. Bxc6 {[%emt 0:00:14]} bxc6 {[%emt 0:00:05]} 9. Nxc6 {[%emt 0:00:07]} Qe8 {[%emt 0:00:05]} 10. Nxe7+ {[%emt 0:01:03]} Qxe7 {[%emt 0:00:06]} 11. Qa4 {[%emt 0:00:27]} Bb7 {[%emt 0:07:28]} 12. Qxc4 {[%emt 0:09:04]} Rfd8 {[%emt 0:21:50]} 13. Nc3 {[%emt 0:08:05]} Nd5 {[%emt 0:14:13]} 14. Nxd5 {[%emt 0:02:36]} Bxd5 {[%emt 0:00:17]} 15. Qc3 {[%emt 0:01:45]} Rab8 {[%emt 0:08:09]} 16. Bf4 {[%emt 0:12:24]} Qb4 {[%emt 0:09:03]} 17. Qxb4 {[%emt 0:02:04]} Rxb4 {[%emt 0:00:05]} 18. b3 {[%emt 0:00:24]} Rxd4 {[%emt 0:13:38]} 19. Bxc7 {[%emt 0:03:09]} Rc8 {[%emt 0:00:05]} 20. Bf4 {[%emt 0:00:27]} Bb7 {[%emt 0:08:09]} 21. Rfd1 {[%emt 0:15:18]} Rdd8 {[%emt 0:01:18]} 22. Rxd8+ {[%emt 0:00:56]} Rxd8 {[%emt 0:00:04]} 23. Kf1 {[%emt 0:04:11]} Kf8 {[%emt 0:00:20]} 24. Rc1 {[%emt 0:00:53]} Rc8 {[%emt 0:00:05]} 25. Rxc8+ {[%emt 0:00:40]} Bxc8 {[%emt 0:00:04]} 26. Ke1 {[%emt 0:00:11]} Ke8 {[%emt 0:01:10]} 27. Kd2 {[%emt 0:00:27]} Kd7 {[%emt 0:01:53]} 28. Be3 {[%emt 0:02:10]} a6 {[%emt 0:00:21]} 29. Kc3 {[%emt 0:01:58]} Kc6 {[%emt 0:01:00]} 30. Kb4 {[%emt 0:04:42]} Kd5 {[%emt 0:00:33]} 31. Ka5 {[%emt 0:02:19]} Kc6 {[%emt 0:00:05]} 32. a4 {[%emt 0:01:41]} Bb7 {[%emt 0:00:52]} 33. b4 {[%emt 0:01:06]} e5 {[%emt 0:01:21]} 34. b5+ {[%emt 0:02:42]} axb5 {[%emt 0:00:05]} 35. axb5+ {[%emt 0:00:03]} Kc7 {[%emt 0:00:06]} 36. Kb4 {[%emt 0:02:35]} f6 {[%emt 0:01:34]} 37. Kc5 {[%emt 0:01:10]} g6 {[%emt 0:00:11]} 38. Bh6 {[%emt 0:06:09]} f5 {[%emt 0:00:05]} 39. Bg7 {[%emt 0:01:21]} e4 {[%emt 0:00:05]} 40. Be5+ {[%emt 0:00:34]} Kd7 {[%emt 0:01:06]} 41. Bd6 {[%emt 0:32:29]} Ba8 {[%emt 0:30:49]} 42. Bf8 {[%emt 0:02:53]} Bb7 {[%emt 0:00:49]} 43. Kd4 {[%emt 0:00:34]} Ke6 {[%emt 0:00:22]} 44. Bb4 {[%emt 0:01:25]} Ba8 {[%emt 0:00:00]} 45. Kc5 {[%emt 0:00:00]} Kd7 {[%emt 0:00:00]} 46. Kb6 {[%emt 0:00:00]} Bd5 {[%emt 0:00:00]} 47. Kc5 {[%emt 0:00:00]} Ba8 {[%emt 0:00:00]} 48. Kd4 {[%emt 0:00:00] normal} 1/2-1/2